bitfinex-derivatives/quotes_SOLF0:USTF0_20250731
["timestamp","ask_amount","ask_price","bid_price","bid_amount"]
[1753987429222,7.14283424,177.57,177.54,3.3]
[1753987429427,3.08,177.56,177.54,3.3]
[1753987429927,3.08,177.56,177.55,5.6327]
[1753987430127,3.08,177.56,177.55,8.9327]
[1753987431132,3.08,177.56,177.55,5.6327]
[1753987431429,3.08,177.56,177.55,3.3]
[1753987431823,3.08,177.57,177.55,5.6326]
[1753987432029,3.08,177.58,177.56,3.3]
[1753987432328,7.14113862,177.57,177.56,3.3]
[1753987432829,4.06113862,177.57,177.55,5.6326]
[1753987433031,3.08,177.58,177.55,8.9326]
[1753987433231,3.08,177.56,177.55,8.9326]
[1753987437531,3.08,177.58,177.57,3.3]
[1753987437730,4.05854718,177.59,177.57,3.3]
[1753987437925,4.05854718,177.58,177.57,3.3]
[1753987438127,4.05854718,177.58,177.57,12.93295116]
[1753987438436,3.08,177.6,177.58,2.99]
[1753987438635,7.30833822,177.59,177.58,2.99]
[1753987438837,4.05833822,177.59,177.56,2.99]
[1753987439032,3.25,177.57,177.56,8.6224]
[1753987440436,3.25,177.57,177.56,2.99]
[1753987440634,3.25,177.57,177.5,2.99]
[1753987440839,3.25,177.55,177.5,2.99]
[1753987441031,4.00105116,177.52,177.46,2.99]
[1753987441333,3.25,177.49,177.43,2.99]
[1753987441532,3.25,177.47,177.44,2.99]
[1753987441935,3.25,177.48,177.45,2.99]
[1753987442136,3.25,177.5,177.45,2.99]
[1753987442337,3.25,177.49,177.45,2.99]
[1753987442537,3.25,177.48,177.45,2.99]
[1753987442937,3.25,177.48,177.45,4.00105116]
[1753987443137,3.25,177.48,177.46,2.99]
[1753987443540,3.25,177.48,177.47,8.6253]
[1753987446747,109.2337,177.52,177.48,5.6349]
[1753987446942,3.25,177.49,177.48,8.6249]
[1753987447337,103.6,177.52,177.49,2.99]
[1753987447338,3.25,177.51,177.49,2.99]
[1753987447540,3.25,177.51,177.49,8.6246]
[1753987447746,3.25,177.51,177.49,2.99]
[1753987448141,3.25,177.51,177.49,8.6246]
[1753987448348,4.73821113,177.56,177.48,4.00105116]
[1753987448543,3.25,177.54,177.51,2.99]
[1753987448751,3.25,177.53,177.51,2.99]
[1753987448945,3.25,177.53,177.52,2.99]
[1753987450047,3.25,177.56,177.5,6.99105116]
[1753987450249,3.25,177.54,177.51,2.99]
[1753987451244,3.25,177.54,177.52,2.99]
[1753987451448,3.25,177.54,177.53,2.99]
[1753987453340,109.2521,177.57,177.53,2.99]
[1753987453546,3.25,177.56,177.54,2.99]
[1753987453848,3.25,177.55,177.54,2.99]
[1753987454549,3.25,177.55,177.52,2.99]
[1753987454746,3.25,177.55,177.51,4.00105116]
[1753987454945,3.25,177.56,177.52,2.99]
[1753987455145,103.62,177.57,177.53,2.99]
[1753987455345,3.25,177.55,177.53,2.99]
[1753987455541,3.25,177.55,177.51,6.99105116]
[1753987455749,3.25,177.55,177.52,2.99]
[1753987456350,3.25,177.54,177.52,2.99]
[1753987456551,3.25,177.53,177.52,2.99]
[1753987457552,8.8834,177.53,177.52,2.99]
[1753987458256,8.8834,177.53,177.51,4.00105116]
[1753987458452,3.25,177.52,177.51,6.99105116]
[1753987458949,8.8832,177.54,177.51,6.99105116]
[1753987459150,3.25,177.53,177.52,2.99]
[1753987459954,103.62,177.57,177.52,2.99]
[1753987460154,7.29423933,177.56,177.54,2.99]
[1753987460353,3.25,177.56,177.53,4.00105116]
[1753987460554,8.8826,177.56,177.54,2.99]
[1753987460855,3.25,177.55,177.54,2.99]
[1753987461657,3.25,177.54,177.52,2.99]
[1753987462354,5.6332,177.54,177.51,2.99]
[1753987462747,3.25,177.52,177.51,2.99]
[1753987464160,3.25,177.52,177.42,2.99]
[1753987464356,3.25,177.51,177.5,2.99]
[1753987464859,3.25,177.52,177.5,2.99]
[1753987465056,3.25,177.54,177.5,2.99]
[1753987465261,3.25,177.54,177.53,2.99]
[1753987465650,12.93202381,177.54,177.53,2.99]
[1753987466058,3.25,177.53,177.51,2.99]
[1753987466258,5.6337,177.52,177.51,2.99]
[1753987466454,3.25,177.52,177.51,2.99]
[1753987468056,3.25,177.57,177.51,2.99]
[1753987468361,3.07,177.6,177.55,3.18]
[1753987468562,5.6326,177.56,177.53,3.18]
[1753987468761,3.07,177.54,177.52,4.00105116]
[1753987469162,4.73821113,177.6,177.52,9.63455116]
[1753987469364,3.07,177.55,177.52,9.63455116]
[1753987469565,3.07,177.55,177.54,3.18]
[1753987470463,3.07,177.57,177.54,3.18]
[1753987470663,3.07,177.57,177.54,7.18105116]
[1753987470867,3.07,177.57,177.55,3.18]
[1753987471468,5.6319,177.58,177.56,3.18]
[1753987471665,4.05306644,177.57,177.56,3.18]
[1753987471863,3.07,177.61,177.57,3.18]
[1753987472165,7.12259407,177.6,177.57,3.18]
[1753987472371,4.05259407,177.59,177.57,3.18]
[1753987473974,7.12259407,177.59,177.57,3.18]
[1753987474174,3.07,177.59,177.57,3.18]
[1753987474377,3.07,177.59,177.54,7.18105116]
[1753987474576,7.11697573,177.58,177.55,3.18]
[1753987474772,3.07,177.58,177.55,3.18]
[1753987474975,113.29961302,177.62,177.56,3.18]
[1753987474976,3.07,177.57,177.56,3.18]
[1753987475772,113.29961302,177.62,177.56,3.18]
[1753987476072,4.04719709,177.61,177.56,3.18]
[1753987476375,3.07,177.59,177.56,3.18]
[1753987476575,4.04719709,177.58,177.56,3.18]
[1753987476972,7.11719709,177.58,177.57,3.18]
[1753987477270,12.74899709,177.58,177.57,3.18]
[1753987481377,4.04719709,177.58,177.57,3.18]
[1753987481771,4.04719709,177.59,177.57,4.00105116]
[1753987481971,4.73821113,177.67,177.58,4.00105116]
[1753987482173,4.73821113,177.67,177.61,4.00105116]
[1753987482174,4.04726524,177.66,177.61,4.00105116]
[1753987482372,8.7001,177.64,177.61,4.00105116]
[1753987482674,4.04726524,177.63,177.61,4.00105116]
[1753987482877,8.7001,177.64,177.61,4.00105116]
[1753987483172,4.0459278,177.63,177.62,3.18]
[1753987483572,12.7461278,177.63,177.62,3.18]
[1753987484174,7.1159278,177.63,177.62,3.18]
[1753987485075,3.07,177.63,177.62,3.18]
[1753987485279,8.7002,177.63,177.62,3.18]
[1753987485480,12.74293765,177.63,177.62,3.18]
[1753987486086,8.7002,177.63,177.62,3.18]
[1753987486882,5.6307,177.62,177.59,4.00105116]
[1753987487083,3.07,177.61,177.51,55.268]
[1753987487277,3.07,177.6,177.59,3.18]
[1753987488684,3.07,177.61,177.6,3.18]
[1753987489685,3.07,177.61,177.58,4.00105116]
[1753987490181,5.6318,177.58,177.54,4.00105116]
[1753987490385,3.07,177.61,177.55,3.18]
[1753987490981,4.04248282,177.6,177.56,7.18105116]
[1753987491283,3.07,177.62,177.59,3.18]
[1753987491484,4.0426407,177.61,177.59,8.8115]
[1753987491690,3.07,177.63,177.61,3.18]
[1753987491883,3.07,177.65,177.61,3.18]
[1753987492083,12.74229932,177.64,177.61,3.18]
[1753987492385,3.07,177.67,177.63,3.18]
[1753987492588,5.71836857,177.69,177.57,4.00105116]
[1753987492589,4.04176717,177.66,177.65,3.18]
[1753987492779,9.67106717,177.66,177.65,3.18]
[1753987493183,12.74106717,177.66,177.65,3.18]
[1753987494287,12.74106717,177.66,177.64,4.00105116]
[1753987494488,3.07,177.65,177.64,7.18105116]
[1753987495692,8.6996,177.65,177.64,7.18105116]
[1753987495994,8.6996,177.65,177.64,3.18]
[1753987497283,3.07,177.65,177.64,3.18]
[1753987498093,8.6996,177.65,177.64,3.18]
[1753987498994,0.98015744,177.69,177.63,3.15]
[1753987499187,4.03760193,177.68,177.63,3.15]
[1753987499393,2.99,177.66,177.63,3.15]
[1753987499594,2.99,177.64,177.58,4.00105116]
[1753987499792,4.0382819,177.63,177.58,4.00105116]
[1753987499985,2.99,177.65,177.59,3.15]
[1753987500290,2.99,177.61,177.6,3.15]
[1753987500888,103.5,177.66,177.6,4.00105116]
[1753987501090,4.03815481,177.65,177.61,3.15]
[1753987501290,5.6305,177.63,177.61,3.15]
[1753987501490,2.99,177.64,177.61,3.15]
[1753987501894,5.6302,177.63,177.61,3.15]
[1753987502294,2.99,177.66,177.61,3.15]
[1753987502496,2.99,177.64,177.61,3.15]
[1753987502795,2.99,177.63,177.61,3.15]
[1753987502997,8.6203,177.63,177.61,3.15]
[1753987503691,8.62,177.64,177.61,3.15]
[1753987504098,5.6303,177.63,177.61,3.15]
[1753987504494,2.99,177.63,177.61,3.15]
[1753987504699,2.99,177.63,177.62,3.15]
[1753987504899,2.99,177.66,177.62,3.15]
[1753987505197,2.99,177.64,177.62,3.15]
[1753987505393,5.6307,177.62,177.59,5.6312]
[1753987505598,2.99,177.62,177.61,3.15]
[1753987506294,2.99,177.62,177.59,3.15]
[1753987506501,2.99,177.61,177.59,3.15]
[1753987507797,8.6209,177.61,177.59,3.15]
[1753987510802,5.6312,177.6,177.59,3.15]
[1753987511001,2.99,177.6,177.49,55.2689]
[1753987511200,2.99,177.6,177.58,3.15]
[1753987511394,8.6217,177.59,177.58,3.15]
[1753987512196,5.6313,177.6,177.58,3.15]
[1753987512402,8.73926229,177.66,177.58,4.00105116]
[1753987512604,2.99,177.62,177.59,3.15]
[1753987512899,8.6209,177.61,177.6,3.15]
[1753987513096,7.03149569,177.61,177.58,4.00105116]
[1753987513297,5.6313,177.6,177.59,3.15]
[1753987513695,8.6213,177.6,177.59,3.15]
[1753987515396,5.6315,177.59,177.56,9.63335116]
[1753987515592,2.99,177.58,177.54,4.00105116]
[1753987515797,2.99,177.58,177.55,3.15]
[1753987515998,5.6324,177.57,177.55,3.15]
[1753987516199,2.99,177.56,177.55,3.15]
[1753987516699,2.99,177.58,177.55,3.15]
[1753987516900,2.99,177.61,177.55,3.15]
[1753987517100,5.632,177.58,177.55,3.15]
[1753987517291,2.99,177.57,177.55,3.15]
[1753987518303,8.6222,177.57,177.55,3.15]
[1753987518695,8.6222,177.57,177.56,3.15]
[1753987519902,8.6222,177.57,177.53,3.15]
[1753987519903,2.99,177.55,177.53,3.15]
[1753987521804,2.99,177.55,177.54,3.15]
[1753987522405,2.99,177.55,177.54,8.7831]
[1753987522599,8.6223,177.57,177.54,3.15]
[1753987523007,2.99,177.56,177.54,5.633]
[1753987523207,2.99,177.56,177.55,3.15]
[1753987524305,8.6225,177.56,177.55,3.15]
[1753987529310,2.99,177.56,177.55,3.15]
[1753987529511,2.99,177.56,177.53,5.6333]
[1753987529712,2.99,177.56,177.54,3.19]
[1753987529909,3.23,177.56,177.54,5.6331]
[1753987530112,3.23,177.61,177.54,4.00105116]
[1753987530407,8.8601,177.64,177.59,7.19105116]
[1753987530606,7.27386357,177.63,177.62,7.19105116]
[1753987530811,4.04386357,177.63,177.62,7.19105116]
[1753987531112,3.23,177.64,177.63,3.19]
[1753987531411,3.23,177.68,177.65,3.19]
[1753987531617,3.23,177.7,177.68,3.19]
[1753987531810,3.23,177.7,177.69,4.00105116]
[1753987532006,7.27175079,177.7,177.69,4.00105116]
[1753987532206,7.27175079,177.7,177.69,7.19105116]
[1753987532813,4.04175079,177.7,177.69,7.19105116]
[1753987533015,4.73315965,177.75,177.7,3.19]
[1753987533210,3.23,177.77,177.74,7.19105116]
[1753987533610,3.23,177.76,177.75,3.19]
[1753987534110,103.48,177.78,177.75,3.19]
[1753987534417,3.23,177.76,177.75,3.19]
[1753987534819,8.8562,177.76,177.75,3.19]
[1753987536815,3.23,177.74,177.73,3.19]
[1753987537712,8.8568,177.74,177.73,3.19]
[1753987537912,3.23,177.77,177.7,7.19105116]
[1753987538217,5.6276,177.72,177.7,7.19105116]
[1753987538418,3.23,177.77,177.7,7.19105116]
[1753987539212,3.23,177.77,177.66,4.00105116]
[1753987539213,3.23,177.77,177.72,4.00105116]
[1753987539419,3.23,177.77,177.73,3.19]
[1753987540014,5.627,177.74,177.73,3.19]
[1753987540219,8.857,177.74,177.73,3.19]
[1753987541213,5.627,177.74,177.73,3.19]
[1753987542016,8.8564,177.76,177.73,3.19]
[1753987542218,5.6264,177.76,177.75,7.19105116]
[1753987542417,8.8564,177.76,177.75,7.19105116]
[1753987542920,5.6264,177.76,177.75,7.19105116]
[1753987543113,8.8564,177.76,177.75,7.19105116]
[1753987544120,3.23,177.76,177.75,7.19105116]
[1753987544315,3.23,177.78,177.75,7.19105116]
[1753987544520,8.8558,177.78,177.77,3.19]
[1753987545723,3.23,177.78,177.75,7.19105116]
[1753987546019,3.23,177.77,177.76,3.19]
[1753987547122,3.23,177.78,177.75,4.00105116]
[1753987547418,3.23,177.78,177.77,3.19]
[1753987547819,8.8557,177.78,177.77,3.19]
[1753987548022,8.8557,177.78,177.75,7.19105116]
[1753987548222,3.23,177.77,177.76,3.19]
[1753987548421,5.6257,177.78,177.75,4.00105116]
[1753987548620,8.8557,177.78,177.77,3.19]
[1753987549822,8.856,177.77,177.75,4.00105116]
[1753987550018,3.23,177.76,177.74,3.19]
[1753987550524,3.23,177.76,177.75,3.19]
[1753987551427,5.6256,177.78,177.75,3.19]
[1753987551626,3.23,177.77,177.75,3.19]
[1753987552223,103.42,177.79,177.76,4.00105116]
[1753987552423,103.42,177.79,177.78,7.19105116]
[1753987553221,3.23,177.8,177.79,3.19]
[1753987553427,8.855,177.8,177.79,3.19]
[1753987553828,3.23,177.8,177.79,3.19]
[1753987554128,106.61,177.82,177.79,3.19]
[1753987554321,106.61,177.82,177.81,3.19]
[1753987554529,103.38,177.82,177.81,3.19]
[1753987555725,106.61,177.82,177.81,3.19]
[1753987556026,3.23,177.89,177.81,3.19]
[1753987556232,5.6233,177.86,177.84,4.00105116]
[1753987556430,3.23,177.85,177.84,7.19105116]
[1753987557329,382.44883412,177.9,177.84,4.00105116]
[1753987557530,3.23,177.88,177.85,3.19]
[1753987558322,103.36,177.89,177.75,82.14893684]
[1753987558323,3.05,177.87,177.86,7.11105116]
[1753987560729,3.05,177.87,177.84,7.11105116]
[1753987561424,3.05,177.87,177.84,4.00105116]
[1753987561629,3.05,177.86,177.85,3.11]
[1753987563332,3.05,177.86,177.84,4.00105116]
[1753987563833,3.05,177.85,177.84,7.11105116]
[1753987564337,3.05,177.87,177.86,3.11]
[1753987565430,8.6727,177.87,177.86,3.11]
[1753987565633,3.05,177.87,177.84,7.11105116]
[1753987565933,3.05,177.87,177.85,3.11]
[1753987566130,3.05,177.86,177.85,3.11]
[1753987566730,8.673,177.86,177.85,3.11]
[1753987567234,3.05,177.85,177.84,7.11105116]
[1753987568336,5.6228,177.87,177.84,7.11105116]
[1753987568525,3.05,177.86,177.85,3.11]
[1753987569335,8.673,177.86,177.85,3.11]
[1753987569538,3.05,177.86,177.85,3.11]
[1753987570237,3.05,177.89,177.85,3.11]
[1753987570436,3.05,177.87,177.85,3.11]
[1753987570942,103.3,177.88,177.85,3.11]
[1753987571129,0.97883412,177.9,177.86,4.00105116]
[1753987571437,3.75430278,177.91,177.89,3.11]
[1753987571633,6.80430278,177.91,177.9,3.11]
[1753987572032,3.75430278,177.91,177.9,12.73275116]
[1753987572233,3.75430278,177.91,177.9,7.11105116]
[1753987572633,3.75430278,177.91,177.9,12.73275116]
[1753987572836,3.05,177.96,177.9,7.11105116]
[1753987573036,106.33,177.96,177.93,8.7307]
[1753987573236,106.33,177.96,177.95,3.11]
[1753987573436,110.2967544,177.96,177.95,3.11]
[1753987573847,107.2467544,177.96,177.92,4.00105116]
[1753987574033,3.05,177.95,177.94,3.11]
[1753987574932,3.05,177.94,177.91,3.11]
[1753987575131,3.05,177.93,177.92,3.11]
[1753987575738,3.05,177.95,177.91,4.00105116]
[1753987575939,3.05,177.94,177.93,3.11]
[1753987576340,3.97302298,177.95,177.93,7.11105116]
[1753987576543,106.33,177.96,177.94,3.11]
[1753987576738,106.33,177.96,177.95,4.00105116]
[1753987576943,110.30143113,177.96,177.95,7.11105116]
[1753987577838,107.25143113,177.96,177.95,7.11105116]
[1753987579346,110.30143113,177.96,177.95,3.11]
[1753987579847,106.33,177.96,177.95,3.11]
[1753987580146,3.9685021,177.96,177.95,3.11]
[1753987580344,7.0185021,177.96,177.95,3.11]
[1753987580539,3.9685021,177.96,177.95,8.7302]
[1753987580845,106.31,177.98,177.97,3.11]
[1753987581146,110.2774996,177.98,177.97,3.11]
[1753987581448,115.8966996,177.98,177.95,4.00105116]
[1753987581648,7.0174996,177.97,177.96,3.11]
[1753987581848,3.9674996,177.97,177.96,3.11]
[1753987582547,7.0174996,177.97,177.96,3.11]
[1753987582947,12.6372996,177.97,177.95,4.00105116]
[1753987583147,7.01664459,177.96,177.93,3.11]
[1753987583347,3.05,177.96,177.93,3.11]
[1753987583547,3.05,177.96,177.92,5.621]
[1753987583744,3.05,177.94,177.91,3.11]
[1753987584152,3.05,177.94,177.9,9.62255116]
[1753987584153,3.05,177.93,177.92,3.11]
[1753987585054,3.05,177.94,177.93,3.11]
[1753987585757,3.05,177.94,177.92,4.00105116]
[1753987585957,3.05,177.93,177.92,7.11105116]
[1753987586158,3.05,177.93,177.92,4.00105116]
[1753987586860,3.05,177.93,177.89,3.11]
[1753987587167,106.29,177.92,177.89,3.11]
[1753987587456,3.05,177.91,177.9,3.11]
[1753987590253,108.8412,177.92,177.88,9.62325116]
[1753987590254,3.23,177.9,177.88,3.03]
[1753987590458,3.23,177.9,177.86,3.03]
[1753987590759,3.23,177.9,177.87,3.03]
[1753987591151,3.23,177.89,177.88,3.03]
[1753987591955,103.22,177.92,177.88,7.03105116]
[1753987592157,3.23,177.91,177.9,3.03]
[1753987592458,3.23,177.9,177.89,3.03]
[1753987593363,3.23,177.9,177.87,3.03]
[1753987593565,3.23,177.9,177.85,3.03]
[1753987593566,3.23,177.88,177.85,3.03]
[1753987594066,3.23,177.87,177.86,3.03]
[1753987594263,103.22,177.89,177.86,3.03]
[1753987594565,3.23,177.88,177.87,3.03]
[1753987594959,3.23,177.88,177.84,4.00105116]
[1753987595167,7.23105116,177.86,177.8,3.03]
[1753987595466,3.23,177.84,177.8,3.03]
[1753987595657,3.23,177.84,177.8,4.00105116]
[1753987595864,3.23,177.84,177.82,3.03]
[1753987596064,3.23,177.84,177.83,3.03]
[1753987596564,3.23,177.88,177.83,3.03]
[1753987596763,3.98654117,177.87,177.86,4.00105116]
[1753987596963,3.23,177.88,177.87,3.03]
[1753987597267,3.9861652,177.88,177.87,3.03]
[1753987597461,103.24,177.89,177.87,3.03]
[1753987597665,103.24,177.89,177.87,7.03105116]
[1753987597862,3.23,177.91,177.88,3.03]
[1753987598062,103.24,177.92,177.89,4.00105116]
[1753987598257,103.24,177.93,177.91,7.03105116]
[1753987598458,3.98922243,177.92,177.91,4.00105116]
[1753987598662,3.23,177.91,177.9,4.00105116]
[1753987598870,7.21922243,177.91,177.9,4.00105116]
[1753987599173,13.47800996,177.91,177.9,7.03105116]
[1753987599670,13.47800996,177.91,177.9,4.00105116]
[1753987600067,13.47800996,177.91,177.9,7.03105116]
[1753987600365,13.47800996,177.91,177.9,4.00105116]
[1753987600366,7.21922243,177.91,177.9,4.00105116]
[1753987600570,3.98922243,177.91,177.9,9.62285116]
[1753987601070,10.27539376,177.91,177.9,9.62285116]
[1753987601670,3.98922243,177.91,177.9,9.62285116]
[1753987601870,6.28617133,177.93,177.91,5.6214]
[1753987602171,12.659257,177.95,177.92,7.03105116]
[1753987602375,6.28657528,177.93,177.92,7.03105116]
[1753987602766,12.659257,177.96,177.93,3.03]
[1753987603076,9.429257,177.96,177.95,7.03105116]
[1753987603270,3.23,177.96,177.95,7.03105116]
[1753987603771,3.23,177.96,177.95,4.00105116]
[1753987604172,12.659257,177.96,177.95,4.00105116]
[1753987604571,18.279157,177.96,177.95,4.00105116]
[1753987604770,12.659257,177.96,177.95,4.00105116]
[1753987605169,3.23,177.96,177.95,4.00105116]
[1753987606078,3.23,177.96,177.95,7.03105116]
[1753987606271,103.24,177.97,177.95,4.00105116]
[1753987606476,3.23,177.96,177.95,4.00105116]
[1753987607673,3.23,177.96,177.93,4.00105116]
[1753987607870,9.4292803,177.94,177.93,4.00105116]
[1753987608069,12.6592803,177.94,177.93,4.00105116]
[1753987608274,3.23,177.94,177.93,4.00105116]
[1753987608473,3.23,177.94,177.91,1.2]
[1753987608672,3.23,177.94,177.84,48.00105116]
[1753987608673,3.23,177.93,177.92,4.00105116]
[1753987609480,9.4292803,177.94,177.93,1.2]
[1753987609774,9.4292803,177.95,177.92,4.00105116]
[1753987609972,12.6592803,177.95,177.94,4.00105116]
[1753987610175,3.23,177.95,177.94,4.00105116]
[1753987611379,15.0500956,177.96,177.94,5.20105116]
[1753987611380,12.6600956,177.96,177.94,5.20105116]
[1753987611570,9.4300956,177.96,177.94,5.20105116]
[1753987611767,9.4300956,177.96,177.94,9.62125116]
[1753987612074,9.4300956,177.96,177.94,5.20105116]
[1753987612278,3.23,177.95,177.94,4.00105116]
[1753987612576,3.23,177.95,177.94,5.20105116]
[1753987612877,3.23,177.95,177.94,10.82145116]
[1753987613376,3.23,177.97,177.95,5.6201]
[1753987613581,15.0495956,177.98,177.95,5.6201]
[1753987613774,8.22564447,177.97,177.96,4.00105116]
[1753987614277,17.65574007,177.97,177.96,4.00105116]
[1753987615067,23.27534007,177.97,177.96,4.00105116]
[1753987615276,3.23,177.96,177.95,4.00105116]
[1753987615473,17.66202296,177.96,177.95,4.00105116]
[1753987615874,14.43202296,177.96,177.95,5.20105116]
[1753987616074,4.99564447,177.96,177.95,5.20105116]
[1753987616273,8.22564447,177.96,177.95,5.20105116]
[1753987616574,8.22564447,177.96,177.95,10.82125116]
[1753987617882,4.99564447,177.96,177.95,10.82125116]
[1753987618676,5.117e-05,177.97,177.96,1.19]
[1753987618974,3.17,178.01,177.96,1.19]
[1753987619180,3.17,178.01,178.0,4.00105116]
[1753987620080,3.17,178.03,178.01,5.6182]
[1753987620269,3.17,178.03,178.0,5.19105116]
[1753987620469,3.17,178.03,178.0,4.00105116]
[1753987620681,5.6179,178.03,178.0,9.61945116]
[1753987620881,3.17,178.01,178.0,9.61945116]
[1753987621082,3.17,178.01,178.0,10.80945116]
[1753987621383,3.17,178.04,178.0,9.61945116]
[1753987621576,3.17,178.04,178.01,5.6183]
[1753987621882,3.17,178.02,178.01,5.6183]
[1753987622978,3.17,178.02,178.0,4.00105116]
[1753987622979,3.17,178.02,178.0,10.80965116]
[1753987623379,8.7882,178.02,178.0,4.00105116]
[1753987623680,3.17,178.01,178.0,4.00105116]
[1753987623876,3.17,178.01,177.93,5.19105116]
[1753987624086,3.17,178.01,177.98,4.00105116]
[1753987624275,3.17,178.01,178.0,4.00105116]
[1753987625181,8.7883,178.01,178.0,4.00105116]
[1753987625678,3.17,177.96,177.95,4.00105116]
[1753987625882,3.17,177.96,177.93,1.19]
[1753987626080,3.17,178.03,177.95,9.62105116]
[1753987626478,3.17,178.03,177.95,5.62]
[1753987626671,106.61,178.03,177.98,4.00105116]
[1753987626871,3.17,178.02,177.98,4.00105116]
[1753987627071,5.6167,178.07,178.0,4.00105116]
[1753987627282,3.17,178.08,178.02,4.00105116]
[1753987627686,3.17,178.06,178.02,4.00105116]
[1753987628289,3.17,178.06,178.04,4.00105116]
[1753987628980,3.17,178.06,178.02,4.00105116]
[1753987629681,5.6173,178.05,178.04,4.00105116]
[1753987630088,8.7873,178.05,178.04,4.00105116]
[1753987630482,9.43637849,178.09,178.04,7.07105116]
[1753987630786,4.71146793,178.08,178.05,3.07]
[1753987630981,4.71146793,178.07,178.05,3.07]
[1753987631182,4.71146793,178.06,178.04,5.6173]
[1753987631381,4.71146793,178.05,178.02,4.00105116]
[1753987631582,103.36,178.1,178.02,4.00105116]
[1753987631783,103.36,178.1,178.03,3.07]
[1753987631982,103.36,178.1,178.07,4.00105116]
[1753987632588,3.17,178.09,178.07,4.00105116]
[1753987632992,5.6161,178.08,178.07,4.00105116]
[1753987633288,8.7861,178.08,178.07,4.00105116]
[1753987633493,3.17,178.08,178.07,4.00105116]
[1753987633688,8.7861,178.08,178.07,4.00105116]
[1753987634086,3.17,178.08,178.07,4.00105116]
[1753987635088,3.17,178.08,178.07,7.07105116]
[1753987635285,3.17,178.09,178.07,4.00105116]
[1753987635895,3.17,178.08,178.07,4.00105116]
[1753987637895,8.7861,178.08,178.07,4.00105116]
[1753987638091,3.17,178.09,178.07,4.00105116]
[1753987638696,3.17,178.08,178.07,4.00105116]
[1753987639293,8.7861,178.08,178.07,4.00105116]
[1753987640287,8.7861,178.08,178.05,4.00105116]
[1753987640288,9.43060239,178.08,178.05,4.00105116]
[1753987640493,6.26060239,178.07,178.05,4.00105116]
[1753987640696,3.17,178.06,178.05,4.00105116]
[1753987641090,3.17,178.06,178.05,7.07105116]
[1753987641297,6.26060239,178.08,178.06,3.07]
[1753987641495,3.17,178.07,178.06,3.07]
[1753987642594,3.17,178.07,178.06,7.07105116]
[1753987642790,6.26060239,178.08,178.06,7.07105116]
[1753987642995,3.17,178.07,178.06,7.07105116]
[1753987643505,9.43060239,178.07,178.06,4.00105116]
[1753987643699,7.70295185,178.07,178.06,4.00105116]
[1753987643894,4.53295185,178.07,178.06,7.07105116]
[1753987644099,7.70295185,178.07,178.06,7.07105116]
[1753987645792,7.70295185,178.07,178.06,4.00105116]
[1753987646306,19.57995424,178.07,178.06,4.00105116]
[1753987647802,5.6168,178.06,178.02,3.07]
[1753987648001,3.17,178.04,177.94,3.07]
[1753987648304,3.23,178.05,178.02,3.0]
[1753987648501,3.23,178.06,178.02,3.0]